Cogmind - Beta 10.2 @@@ ROGUE MODE // 2021.02.13 @ 00:27:52 Player: Finestep Result: Self-destructed Performance ------------- Evolutions (4) 2000 Regions Visited (13) 2600 Robots Destroyed (321) 1605 Value Destroyed (11805) 11805 Prototype IDs (21) 420 Alien Tech Used (0) 0 Bonus (3077) 3077 TOTAL SCORE: 21507 Bonus ------- High Alert Combat Kills 2391 Follower Combat Kills 801 Entered Garrisons 800 Used RIF Installer 2000 Friendly Fire -2915 Cogmind --------- Core Integrity 443/850 Matter 300/300 Energy 150/150 System Corruption 4% Temperature Cool (12) Movement Hovering (290) Ox3 Location -6/Extension Parts ------- > --- POWER (2) -------- Light Angular Momentum Engine > --- PROPULSION (4) --- Combat Airjet > --- UTILITY (7) ------ Large Storage Unit Large Storage Unit Large Storage Unit Melee Analysis Suite Layered Light Armor Plating Relay Coupler [Sentry] (4) > --- WEAPON (2) ------- Ripper Ripper > --- INVENTORY (22) --- Light Angular Momentum Engine Light Angular Momentum Engine Fusion Compressor Improved Energy Well (600) Advanced Melee Analysis Suite Weapon Shielding Hardened Medium Armor Plating Hacking Suite Improved Hacking Suite Relay Coupler [NC] (19) Relay Coupler [Hunter] (20) Cooled Particle Cannon Cooled Plasma Cannon Long-range Missile Launcher Long-range Missile Launcher Remote Datajack Plasma Cutter Katana Ripper Peak State ------------ > --- POWER ------------ Light Angular Momentum Engine Light Angular Momentum Engine > --- PROPULSION ------- Cooled Aerolev Unit Cooled Aerolev Unit Combat Airjet Combat Airjet > --- UTILITY ---------- Large Storage Unit Large Storage Unit Large Storage Unit Launcher Loader Layered Light Armor Plating Relay Coupler [Sentry] > --- WEAPON ----------- Advanced EMP Blaster Remote Datajack > --- INVENTORY -------- Light Angular Momentum Engine Gravmag System Fusion Compressor Improved Energy Well Advanced Melee Analysis Suite Weapon Shielding Hardened Medium Armor Plating Hacking Suite Improved Hacking Suite Relay Coupler [NC] Relay Coupler [Hunter] Cooled Particle Cannon Cooled Plasma Cannon Long-range Missile Launcher Long-range Missile Launcher Plasma Cutter Katana Ripper Ripper [Rating: 68] Favorites ----------- Power Heavy Ion Engine Engine Heavy Ion Engine Power Core Light Fission Core Reactor Light Antimatter Reactor Propulsion Light Treads Treads Light Treads Leg Improved Titanium Leg Wheel Armored Wheel Hover Unit Combat Airjet Utility Large Storage Unit Device Improved Shield Generator Storage Large Storage Unit Processor Advanced Targeting Computer Hackware Relay Coupler [Sentry] Protection Improved Light Armor Plating Weapon Katana Energy Gun Medium Laser Energy Cannon Improved EM Pulse Cannon Ballistic Gun Enhanced Autogun Ballistic Cannon Light Cannon Launcher Advanced EMP Blaster Special Weapon Improved Remote Datajack Impact Weapon Great Maul Slashing Weapon Katana Special Melee Weapon Datajack Build | -11 -10 -10 -9 -9 -9 -8 -8 -8 -8 -7 -7 -6 -6 ------- Run | Scr Mat Min Mat Sto Gar Mat Gar Mat Gar Fac Gar Fac Ext Slots Evolved 8 | . . . 2 . . 2 . . . 2 . 2 . Power 1 | . . . . . . . . . . . . 1 . Propulsion 2 | . . . . . . 1 . . . 1 . . . Utility 5 | . . . 2 . . 1 . . . 1 . 1 . Weapon . | . . . . . . . . . . . . . . Parts Attached 291 | 7 10 2 27 34 13 36 8 18 28 28 15 45 20 Power 23 | 1 . 1 2 . 1 3 1 1 . 4 . 6 3 Engine 17 | 1 . 1 2 . 1 3 1 1 . 3 . 1 3 Core 5 | . . . . . . . . . . 1 . 4 . Reactor 1 | . . . . . . . . . . . . 1 . Propulsion 67 | 2 2 . 5 9 3 13 2 2 9 9 . 7 4 Treads 43 | 2 2 . 5 8 3 8 2 2 9 2 . . . Leg 5 | . . . . . . 5 . . . . . . . Wheel 3 | . . . . 1 . . . . . 2 . . . Hover 16 | . . . . . . . . . . 5 . 7 4 Flight . | . . . . . . . . . . . . . . Utility 70 | 2 3 . 4 6 1 10 1 5 7 5 4 18 4 Device 7 | . . . . 1 . 1 1 1 1 . . . 2 Storage 12 | 2 3 . 1 1 . 2 . 2 . . . 1 . Processor 2 | . . . . . . 1 . . . . . . 1 Hackware 20 | . . . . . . 1 . 1 4 3 1 10 . Protection 29 | . . . 3 4 1 5 . 1 2 2 3 7 1 Artifact . | . . . . . . . . . . . . . . Weapon 131 | 2 5 1 16 19 8 10 4 10 12 10 11 14 9 Energy Gun 8 | . . 1 2 1 1 . . 1 . . 2 . . Energy Cannon 21 | . . . 1 3 3 . 2 4 4 2 . 2 . Ballistic Gun 33 | 2 3 . 6 6 3 7 2 1 1 . . . 2 Ballistic Cannon 12 | . . . 4 3 . . . . . 3 1 1 . Launcher 22 | . . . 2 5 1 1 . 1 2 1 5 2 2 Special Weapon 11 | . 2 . . . . . . . . 1 1 7 . Impact Weapon 2 | . . . 1 1 . . . . . . . . . Slashing Weapon 16 | . . . . . . . . 2 2 3 2 2 5 Piercing Weapon . | . . . . . . . . . . . . . . Special Melee Weapon 6 | . . . . . . 2 . 1 3 . . . . Unidentified Prototypes 10 | . . . 4 4 . 1 . 1 . . . . . Parts Lost 29 | . 3 2 4 . 4 . . . 1 1 . 6 8 Power 5 | . . 1 . . 1 . . . . . . 2 1 Propulsion 12 | . 2 . 1 . 2 . . . . 1 . 2 4 Utility 3 | . . . 1 . . . . . . . . 1 1 Weapon 9 | . 1 1 2 . 1 . . . 1 . . 1 2 Highest Loss Streak 5 | . 2 2 3 . 3 . . . 1 1 . 1 5 Average Slot Usage (%) 98 | . 99 100 99 99 99 99 99 99 98 99 95 96 91 Engine 8 | . 14 14 11 11 10 9 9 9 9 6 . . 6 Core 1 | . . . . . . . . . . . 7 8 . Treads 16 | . 27 28 21 15 21 8 27 27 27 13 . . . Leg 1 | . . . . . . 18 . . . . . . . Wheel 1 | . . . . 6 . . . . . 7 . . . Hover 5 | . . . . . . . . . . 7 30 25 25 Device 1 | . . . . . . . 7 8 3 . . . . Storage 27 | . 28 28 33 33 33 27 27 27 27 23 23 20 20 Processor 1 | . . . . . . 6 9 9 1 . . . . Hackware 4 | . . . . . . . . . 5 16 7 16 17 Protection 7 | . . . 10 10 11 10 1 . 7 6 13 8 6 Energy Cannon 3 | . . . . 10 2 . 5 9 8 4 . . . Ballistic Gun 8 | . 27 20 7 3 19 17 11 . . . . . 1 Ballistic Cannon 2 | . . . 12 6 . . . . . 4 1 . . Slashing Weapon 2 | . . . . . . . . 6 6 3 6 5 4 Naked Turns . | . . . . . . . . . . . . . . Heaviest Build 93 | 14 54 56 82 85 84 84 84 87 89 92 89 93 91 Greatest Support 88 | 40 40 40 40 43 43 69 60 63 63 88 88 88 74 Greatest Overweight (x) 7 | . 1 1 2 7 1 4 1 1 1 7 1 1 1 Average Overweight (x) 1 | . . 1 1 4 1 1 1 1 1 2 . . . Largest Inventory Capacity 30 | 8 18 18 24 24 24 24 24 24 24 24 24 30 22 Average Capacity 22 | 6 15 18 23 24 24 24 24 24 24 24 24 23 22 Most Carried 24 | 5 16 18 24 24 24 24 24 24 24 24 24 24 22 Average Carried 21 | 3 11 17 22 23 22 23 23 23 23 23 23 22 20 Final Capacity 24 | 8 18 18 24 24 24 24 24 24 24 24 24 22 22 Final Carried 24 | 5 15 18 24 24 24 24 24 24 24 24 24 21 19 Class Distribution -------------------- 53% | Hauler-Mutant 24% | Bothacker-Mutant 13% | Mutant 4% | Botlord-Mutant Dominant Class ---------------- Mutant | -10/Materials Mutant | -10/Mines Hauler-Mutant | -9/Materials Hauler-Mutant | -9/Storage Hauler-Mutant | -9/Garrison Hauler-Mutant | -8/Materials Bothacker-Mutant | -8/Garrison Bothacker-Mutant | -8/Materials Hauler-Mutant | -8/Garrison Hauler-Mutant | -7/Factory Botlord-Mutant | -7/Garrison Bothacker-Mutant | -6/Factory Commander-Mutant | -6/Extension Resources | -11 -10 -10 -9 -9 -9 -8 -8 -8 -8 -7 -7 -6 -6 ----------- Run | Scr Mat Min Mat Sto Gar Mat Gar Mat Gar Fac Gar Fac Ext Matter Collected 7136 | 272 475 63 909 873 345 1158 270 248 348 458 521 645 551 Remotely . | . . . . . . . . . . . . . . Salvage Created 14169 | 102 765 100 1531 1842 994 2329 405 1158 892 1046 835 981 1189 Parts 718 | 7 47 4 94 99 50 136 17 69 47 43 32 42 31 Haulers Intercepted 21 | . 2 . 6 5 . 6 . 2 . . . . . Recyclers Shooed 21 | . . 1 6 4 . . . 1 . 1 . 5 3 Parts Field Recycled . | . . . . . . . . . . . . . . Retrieved Matter . | . . . . . . . . . . . . . . Parts Self-Destructed . | . . . . . . . . . . . . . . Prevented . | . . . . . . . . . . . . . . Kills | -11 -10 -10 -9 -9 -9 -8 -8 -8 -8 -7 -7 -6 -6 ------- Run | Scr Mat Min Mat Sto Gar Mat Gar Mat Gar Fac Gar Fac Ext Combat Hostiles Destroyed 221 | . 13 2 27 27 19 42 7 17 18 14 17 11 7 Melee 20 | . . . 1 . . . . 4 1 6 2 3 3 Guns 93 | . 13 2 12 4 15 42 5 . . . . . . Cannons 60 | . . . 11 20 . . 2 7 10 5 2 3 . AOE 40 | . . . 3 3 3 . . 6 4 3 9 5 4 Classes Destroyed 15 | 2 5 . 3 3 . 2 . . . . . . . Worker 11 | . . . 2 1 . 1 . 2 . 2 . 1 2 Builder 6 | . . . . 2 . 2 . . . 1 . . 1 Tunneler 4 | 2 . . . . . . . . . 1 . 1 . Hauler 21 | . 2 . 6 5 . 6 . 2 . . . . . Recycler 28 | 1 2 . 4 5 . 2 . 1 . 4 . 4 5 Mechanic 1 | . . . . 1 . . . . . . . . . Operator 8 | . 2 . 1 1 . 1 . 2 . . . 1 . Watcher 18 | . 3 . 5 1 . 1 . 2 . 4 1 1 . Swarmer 37 | . 3 . 5 5 3 11 . . 3 . 4 3 . Grunt 118 | . 10 2 16 10 11 13 6 12 9 8 7 7 7 Brawler 9 | . . . . . . 3 1 1 1 . 3 . . Duelist 7 | . . . 1 . 3 3 . . . . . . . Sentry 43 | . . . 5 11 2 10 1 3 5 4 2 . . Hunter 2 | . . . . . . 1 . . . . 1 . . Programmer 7 | . . . . 1 . 1 . 1 . 2 . 2 . Best Kill Streak 7 | 2 5 2 4 5 3 6 3 5 5 5 4 5 7 Combat Bots Only 5 | . 5 2 3 4 3 5 3 4 5 3 4 5 4 Max Kills in Single Turn 5 | 1 1 1 2 2 3 2 1 3 2 5 3 2 5 Gunslinging 1 | . . . . . 1 1 . . . . . . . Exploded 3 | . . . 2 2 3 . . 2 2 3 3 2 3 Melee 1 | . . . 1 . . . . 1 1 1 1 1 1 Uniques/NPCs Destroyed 1 | . . . . 1 . . . . . . . . . 01-MTF (-9/Storage) Combat | -11 -10 -10 -9 -9 -9 -8 -8 -8 -8 -7 -7 -6 -6 -------- Run | Scr Mat Min Mat Sto Gar Mat Gar Mat Gar Fac Gar Fac Ext Damage Taken 10659 | . 624 102 1006 1149 749 1940 194 350 360 689 653 1659 1184 Core 1222 | . 42 . 119 112 63 224 26 11 34 97 87 242 165 Absorbed by Shields 147 | . . . . . . . 21 85 23 . 5 13 . Core Remaining (%) 65 | 100 . 83 . . 26 . . . 46 . 73 . . Volleys Fired 881 | 8 83 19 122 160 58 143 25 31 36 45 46 58 47 Largest 2 | 2 2 2 2 2 2 2 2 2 1 2 1 1 1 Hottest 138 | 40 100 70 73 124 106 50 84 138 69 117 50 48 36 Shots Fired 1386 | 16 162 37 239 244 92 284 40 31 37 53 46 58 47 Gun 790 | 16 160 37 143 35 66 283 31 2 . . 3 . 14 Cannon 456 | . . . 94 204 25 . 9 27 33 41 5 18 . Launcher 55 | . . . 2 5 1 1 . 2 4 . 29 4 7 Special 85 | . 2 . . . . . . . . 12 9 36 26 Kinetic 957 | 16 160 26 200 133 64 283 31 . . 19 5 6 14 Thermal 148 | . 2 11 37 86 . . . . . . . 12 . Explosive 12 | . . . 2 . . . . . . . 6 4 . Electromagnetic 186 | . . . . 25 28 1 9 31 37 22 26 . 7 Robot Hit Streak 27 | 7 12 15 18 16 27 25 13 14 17 14 7 12 11 Robot Miss Streak 5 | 2 3 3 5 5 2 4 2 1 1 3 2 2 2 Penetration Max 1 | . . . . . . . . . . . . . 1 Secondary Targets 10 | . 1 . 1 . 5 2 1 . . . . . . Max Gunslinging Chain 1 | . 1 . 1 . 1 1 1 . . . . . . Shots Hit Robots 1072 | 10 109 29 153 154 76 213 29 41 37 68 32 75 46 Core Hits 456 | 5 41 8 59 60 37 88 16 27 15 33 21 24 22 Critical Hits 22 | . 1 . 3 6 . 2 . . . 3 2 3 2 Critical Kills 6 | . 1 . 1 1 . . . . . 1 1 1 . Critical Parts Destroyed 13 | . . . 2 3 . 2 . . . 2 1 2 1 Melee Attacks 187 | . . . 1 1 . 6 . 16 22 40 21 63 17 Impact 2 | . . . 1 1 . . . . . . . . . Slashing 165 | . . . . . . . . 12 12 40 21 63 17 Piercing . | . . . . . . . . . . . . . . Sneak Attacks 49 | . . . . . . 1 . 6 6 13 1 19 3 Combat Hostiles 16 | . . . . . . . . . 1 9 . 3 3 Follow-up Attacks . | . . . . . . . . . . . . . . Damage Inflicted 26428 | 91 1187 301 2309 2887 1429 3520 683 1821 1394 3470 1761 3402 2173 Guns 8197 | 91 1187 301 1179 273 804 3510 415 82 . . 71 . 284 Cannons 6348 | . . . 998 2110 445 . 202 622 758 704 84 425 . Explosions 5641 | . . . 112 498 180 . 66 588 333 797 1255 634 1178 Melee 6182 | . . . . . . . . 518 303 1969 351 2330 711 Ramming 60 | . . . 20 6 . 10 . 11 . . . 13 . Kinetic 10076 | 91 1187 189 1847 1296 726 3510 415 . . 313 84 134 284 Thermal 3300 | . . 112 330 961 86 . 66 464 46 797 88 291 59 Explosive 1005 | . . . 112 . . . . . . . 259 634 . Electromagnetic 5805 | . . . . 624 617 . 202 828 1045 391 979 . 1119 Impact . | . . . . . . . . . . . . . . Slashing 6182 | . . . . . . . . 518 303 1969 351 2330 711 Piercing . | . . . . . . . . . . . . . . Highest Corruption 5 | . 3 3 . 3 3 3 3 5 5 3 3 4 4 Average Corruption 3 | . 2 3 . 2 3 2 3 3 5 2 3 3 4 Corruption Purged . | . . . . . . . . . . . . . . Effects 255 | . 21 23 . 16 25 20 11 28 44 13 16 19 19 Message Errors 57 | . 4 8 . 1 5 3 2 4 14 2 4 7 3 Matter Fused 48 | . 5 2 . 2 7 . 4 7 7 4 4 2 4 Heat Flow Errors 33 | . 3 5 . 3 2 2 . 3 5 . 2 3 5 Energy Discharges 34 | . 2 3 . 4 3 3 1 5 6 3 3 . 1 Parts Rejected 4 | . . . . . . . . . 1 . . . 3 Data Loss (minor) 27 | . 2 3 . 2 3 4 1 3 2 . 2 5 . Data Loss (major) 3 | . . . . . . . . . 3 . . . . Misfires 1 | . . . . . . . . . 1 . . . . Targeting Errors 39 | . 4 2 . 2 5 7 1 3 5 4 1 2 3 Weapon Failures 9 | . 1 . . 2 . 1 2 3 . . . . . Overload Shots . | . . . . . . . . . . . . . . Overflow Damage 1391 | . . . 12 39 34 . . 53 27 474 89 577 86 Projectiles 147 | . . . 12 10 . . . 7 16 74 . 28 . Explosions 363 | . . . . 29 34 . . 46 3 117 3 85 46 Melee 881 | . . . . . . . . . 8 283 86 464 40 Knockbacks 15 | . . . 7 7 . . . . . 1 . . . Impact . | . . . . . . . . . . . . . . Kinetic 15 | . . . 7 7 . . . . . 1 . . . Secondary . | . . . . . . . . . . . . . . Self-Inflicted Damage 220 | . . . . 21 . . . 74 . . 61 56 8 Shots 9 | . . . . 1 . . . 1 . . 3 3 1 Rammed 7 | . . . 3 2 . . . 1 . . . 1 . Targets Rammed 9 | . . . 4 2 . 1 . 1 . . . 1 . Kicked 1 | . . . . . . 1 . . . . . . . Crushed 1 | . . . 1 . . . . . . . . . . Highest Temperature 363 | . 248 274 363 258 199 201 18 163 274 96 294 263 251 Average Temperature 62 | . 74 72 43 87 65 27 7 52 63 29 66 55 64 Received Heat Transfer 3000 | . 216 60 318 306 147 648 102 117 135 75 231 300 345 Effects 5 | . . . 3 2 . . . . . . . . . Energy Bleed 1 | . . . 1 . . . . . . . . . . Interference 4 | . . . 2 2 . . . . . . . . . Siege Activations . | . . . . . . . . . . . . . . Robots Corrupted 13 | . . . . 1 2 . . . 3 1 4 . 2 Combat Hostiles 8 | . . . . . 1 . . . 3 . 4 . . Parts Fried 42 | . . . . 3 9 . 1 5 7 2 6 . 9 Impact Corruptions . | . . . . . . . . . . . . . . Robots Melted . | . . . . . . . . . . . . . . Combat Hostiles . | . . . . . . . . . . . . . . Parts Melted 4 | . . . 2 . . . 2 . . . . . . Heat Transferred 5463 | . . 333 962 2418 100 . 50 300 50 600 150 400 100 Parts Sabotaged . | . . . . . . . . . . . . . . Parts Stolen . | . . . . . . . . . . . . . . Parts Stripped . | . . . . . . . . . . . . . . Power Chain Reactions 13 | . . . . 2 3 1 1 2 1 . 2 . 1 Missiles Intercepted . | . . . . . . . . . . . . . . Alert | -11 -10 -10 -9 -9 -9 -8 -8 -8 -8 -7 -7 -6 -6 ------- Run | Scr Mat Min Mat Sto Gar Mat Gar Mat Gar Fac Gar Fac Ext Peak Influence 1277 | 15 198 50 302 464 1026 1277 1145 841 1154 907 1263 735 184 Initial 775 | . 9 9 . 96 301 499 775 557 397 605 490 662 67 Average 475 | 6 83 6 182 279 721 687 1017 657 837 751 1027 306 66 Maximum Alert Level 4 | . . . 1 2 3 4 4 3 4 3 4 3 . Low Security (%) 34 | 100 100 100 61 25 . . . . . . . 57 100 Level 1 15 | . . . 38 68 13 6 . . 2 . . 7 . Level 2 17 | . . . . 6 19 55 . 69 16 25 2 27 . Level 3 28 | . . . . . 67 24 86 30 76 74 60 6 . Level 4 4 | . . . . . . 12 13 . 4 . 36 . . Level 5 . | . . . . . . . . . . . . . . High Security . | . . . . . . . . . . . . . . Max Security . | . . . . . . . . . . . . . . Squads Dispatched 43 | . 3 . 6 7 . 7 . 4 . 5 . 10 1 Investigation 14 | . 1 . 4 3 . 1 . 1 . 1 . 3 . Extermination 4 | . . . . . . . . . . 1 . 3 . Reinforcement 14 | . 2 . 2 1 . 1 . 3 . . . 4 1 Assault 4 | . . . . . . 2 . . . 2 . . . Garrison 7 | . . . . 3 . 3 . . . 1 . . . Intercept . | . . . . . . . . . . . . . . Construction Impeded 2 | . . . . 1 . . . . . . . . 1 Haulers Reinforced 3 | . . . . . . . . . . . . 3 . Stealth | -11 -10 -10 -9 -9 -9 -8 -8 -8 -8 -7 -7 -6 -6 --------- Run | Scr Mat Min Mat Sto Gar Mat Gar Mat Gar Fac Gar Fac Ext Distress Signals 13 | . 2 . 2 2 . 1 . 1 . 1 . 2 2 Communications Jammed 18 | . . . . . . . . . . . . 18 . Distress Signals 18 | . . . . . . . . . . . . 18 . Times Spotted 394 | . 31 3 42 41 19 54 13 25 28 23 34 62 19 Peak Tracking Total 9 | . 5 2 5 6 3 5 3 5 8 3 7 9 5 Tactical Retreats 40 | . . . 2 5 . 3 . 2 3 3 8 14 . Traps | -11 -10 -10 -9 -9 -9 -8 -8 -8 -8 -7 -7 -6 -6 ------- Run | Scr Mat Min Mat Sto Gar Mat Gar Mat Gar Fac Gar Fac Ext Traps Triggered 43 | . 3 . 1 3 6 1 5 1 6 1 12 3 1 Indirectly 4 | . . . . . . . . 1 . . 3 . . Trap Hack Attempts . | . . . . . . . . . . . . . . Triggered . | . . . . . . . . . . . . . . Disarmed . | . . . . . . . . . . . . . . Reprogrammed 4 | . . . . . . . . . . . . 4 . Reused 1 | . . . 1 . . . . . . . . . . Traps Extracted . | . . . . . . . . . . . . . . Installed 3 | . . . 3 . . . . . . . . . . Triggered 1 | . . . 1 . . . . . . . . . . Machines | -11 -10 -10 -9 -9 -9 -8 -8 -8 -8 -7 -7 -6 -6 ---------- Run | Scr Mat Min Mat Sto Gar Mat Gar Mat Gar Fac Gar Fac Ext Machines Disabled 35 | . 1 . 1 5 2 1 1 5 4 6 5 4 . Max in Single Turn 4 | . 1 . 1 2 1 1 1 2 1 4 1 1 . Garrison Access 2 | . . . . . . . . . . 1 . 1 . Garrison Relay 10 | . . . . . 2 . 1 . 4 . 3 . . Machines Sabotaged 1 | . . . . . . . . . . . . 1 . Garrisons Compromised . | . . . . . . . . . . . . . . Overloaded Fab Kills . | . . . . . . . . . . . . . . Fab Network Shutdowns . | . . . . . . . . . . . . . . Hacking | -11 -10 -10 -9 -9 -9 -8 -8 -8 -8 -7 -7 -6 -6 --------- Run | Scr Mat Min Mat Sto Gar Mat Gar Mat Gar Fac Gar Fac Ext Machines Accessed 68 | . 7 . 9 11 . 13 . 3 . 6 . 15 4 Terminals 48 | . 6 . 6 9 . 8 . 1 . 3 . 11 4 Fabricators 2 | . . . . . . . . . . . . 2 . Repair Stations 4 | . . . 1 . . 1 . . . 1 . 1 . Recycling Units 5 | . 1 . 2 1 . 1 . . . . . . . Scanalyzers 3 | . . . . . . 2 . 1 . . . . . Garrison Access 6 | . . . . 1 . 1 . 1 . 2 . 1 . Total Hacks 200 | . 22 . 31 27 . 41 . 13 . 14 . 47 5 Successful 117 | . 14 . 15 15 . 25 . 10 . 9 . 24 5 Failed 81 | . 7 . 16 12 . 16 . 3 . 5 . 22 . Catastrophic 9 | . 2 . 1 1 . 3 . 1 . . . 1 . Database Lockouts 2 | . 1 . . . . . . . . . . 1 . Manual 90 | . 12 . 11 8 . 24 . 5 . 5 . 24 1 Terminals 135 | . 21 . 17 21 . 26 . 3 . 7 . 35 5 Fabricators 6 | . . . . . . . . . . . . 6 . Repair Stations 16 | . . . 6 . . 3 . . . 3 . 4 . Recycling Units 14 | . 1 . 8 2 . 3 . . . . . . . Scanalyzers 13 | . . . . . . 6 . 7 . . . . . Garrison Access 16 | . . . . 4 . 3 . 3 . 4 . 2 . Terminal Hacks 54 | . 11 . 8 9 . 10 . . . 2 . 10 4 Part Schematic 4 | . . . . 1 . 1 . . . . . 2 . Robot Analysis 6 | . 2 . . . . 4 . . . . . . . Prototype ID Bank 3 | . 1 . 1 . . . . . . 1 . . . Open Door 6 | . . . . 3 . . . . . . . . 3 Branch Access Points 2 | . . . 1 . . . . . . . . 1 . Terminal Index 4 | . 1 . 1 1 . 1 . . . . . . . Fabricator Index 1 | . . . . . . . . . . . . 1 . Alert Level 2 | . 1 . 1 . . . . . . . . . . Unreport Threat 9 | . 2 . 1 2 . 1 . . . 1 . 2 . Locate Traps 5 | . 1 . 1 1 . 1 . . . . . . 1 Reprogram Traps 1 | . . . . . . . . . . . . 1 . Surveillance Status 1 | . 1 . . . . . . . . . . . . Recall Extermination 1 | . . . . . . . . . . . . 1 . Hauler Manifests 2 | . . . . . . 1 . . . . . 1 . Registered Components 1 | . . . 1 . . . . . . . . . . Zone Layout 6 | . 2 . 1 1 . 1 . . . . . 1 . Fabricator Hacks 2 | . . . . . . . . . . . . 2 . Network Status 1 | . . . . . . . . . . . . 1 . Build 1 | . . . . . . . . . . . . 1 . Repair Station Hacks 13 | . . . 5 . . 2 . . . 2 . 4 . Scan Component 7 | . . . 3 . . 1 . . . 1 . 2 . Repair 6 | . . . 2 . . 1 . . . 1 . 2 . Recycling Unit Hacks 2 | . . . 1 1 . . . . . . . . . Retrieve Components 2 | . . . 1 1 . . . . . . . . . Scanalyzer 11 | . . . . . . 5 . 6 . . . . . Insert Component 5 | . . . . . . 2 . 3 . . . . . Analyze 6 | . . . . . . 3 . 3 . . . . . Garrison Access Hacks 7 | . . . . 1 . 1 . 1 . 2 . 2 . Unlock Access 5 | . . . . 1 . 1 . 1 . 2 . . . Seal Access 1 | . . . . . . . . . . . . 1 . Coupler Status 1 | . . . . . . . . . . . . 1 . Unauthorized Hacks 28 | . 3 . 1 4 . 7 . 3 . 3 . 6 1 Terminals 17 | . 2 . . 2 . 5 . 1 . 1 . 5 1 Track 3 | . 1 . . 1 . 1 . . . . . . . Botnet 11 | . 1 . . 1 . 3 . 1 . 1 . 3 1 Operators 2 | . . . . . . 1 . . . . . 1 . Sabotage 1 | . . . . . . . . . . . . 1 . Fabricators 1 | . . . . . . . . . . . . 1 . Prioritize 1 | . . . . . . . . . . . . 1 . Repair Stations . | . . . . . . . . . . . . . . Recycling Units 3 | . 1 . 1 1 . . . . . . . . . Tunnel 3 | . 1 . 1 1 . . . . . . . . . Scanalyzers . | . . . . . . . . . . . . . . Garrison Access 7 | . . . . 1 . 2 . 2 . 2 . . . Restock 4 | . . . . 1 . 1 . 1 . 1 . . . Eject 3 | . . . . . . 1 . 1 . 1 . . . Data Cores Recovered 1 | . . . . 1 . . . . . . . . . Used . | . . . . . . . . . . . . . . Hacking Detections 55 | . 6 . 9 9 . 11 . 2 . 4 . 12 2 Full Trace Events 5 | . . . 2 2 . . . . . . . 1 . Feedback Events . | . . . . . . . . . . . . . . Feedback Blocked . | . . . . . . . . . . . . . . Robot Schematics Acquired . | . . . . . . . . . . . . . . Robots Built . | . . . . . . . . . . . . . . Matter . | . . . . . . . . . . . . . . Time . | . . . . . . . . . . . . . . Total Robot Build Rating . | . . . . . . . . . . . . . . Part Schematics Acquired 8 | . . . . 1 . 2 . 3 . . . 2 . Parts Built 2 | . . . . . . . . . . . . 2 . Matter 190 | . . . . . . . . . . . . 190 . Time 95 | . . . . . . . . . . . . 95 . Total Part Build Rating 10 | . . . . . . . . . . . . 10 . Parts Repaired 6 | . . . 2 . . 1 . . . 1 . 2 . Time 262 | . . . 62 . . 44 . . . 50 . 106 . Parts Recycled . | . . . . . . . . . . . . . . Recycled Matter . | . . . . . . . . . . . . . . Retrieved Matter . | . . . . . . . . . . . . . . Retrieved Components 9 | . . . 5 4 . . . . . . . . . Parts Scanalyzed 5 | . . . . . . 2 . 3 . . . . . Part Schematics Acquired 4 | . . . . . . 1 . 3 . . . . . Parts Damaged . | . . . . . . . . . . . . . . Bothacking | -11 -10 -10 -9 -9 -9 -8 -8 -8 -8 -7 -7 -6 -6 ------------ Run | Scr Mat Min Mat Sto Gar Mat Gar Mat Gar Fac Gar Fac Ext Used RIF Installer 4 | . . . . . 1 . 1 . 1 . 1 . . Threat Obfuscator 1 | . . . . . . . . . . . 1 . . Signal Jammer 1 | . . . . . . . . . 1 . . . . Robot Detection 1 | . . . . . . . 1 . . . . . . Robots Hacked 39 | . . . . . . 2 . 1 6 8 5 16 1 Non-combat 7 | . . . . . . . . 1 . 2 . 4 . Combat 32 | . . . . . . 2 . . 6 6 5 12 1 Robot Hacks Applied 53 | . . . . . . 2 . 3 6 10 6 25 1 find_fabricator 1 | . . . . . . . . . . . . 1 . drop_inventory 3 | . . . . . . . . . . 1 . 2 . purge_threat 6 | . . . . . . . . 2 . . . 4 . summon_haulers 1 | . . . . . . . . . . . . 1 . map_route 2 | . . . . . . . . . . 1 . 1 . find_garrison 2 | . . . . . . . . . . 1 . 1 . scatter_targeting 1 | . . . . . . . . . . . . . 1 disrupt_area 3 | . . . . . . . . . . 1 1 1 . spike_heat 4 | . . . . . . . . . . . 1 3 . overload_power 2 | . . . . . . . . . . . 1 1 . amplify_resonance 1 | . . . . . . . . . . . . 1 . wipe_record 3 | . . . . . . . . . . 2 . 1 . reboot_system 2 | . . . . . . . . . . 1 . 1 . overwrite_iff 10 | . . . . . . . . . 1 2 3 4 . streamctrl_high 3 | . . . . . . . . . 2 . . 1 . formatsys_low 2 | . . . . . . . . 1 . . . 1 . formatsys_high 7 | . . . . . . 2 . . 3 1 . 1 . Relay Couplers Released 66 | . . . . 4 10 8 4 6 17 4 12 1 . Ejected 7 | . . . . . . 4 . 3 . . . . . Machine Destruction 45 | . . . . . 10 . 4 . 17 1 12 1 . Programmers 14 | . . . . 4 . 4 . 3 . 3 . . . Attached 17 | . . . . . . 1 . 1 4 3 1 7 . Robots Rewired 11 | . . . . . . . . . . . . . 11 Allies Hacked . | . . . . . . . . . . . . . . Hacks Repelled . | . . . . . . . . . . . . . . Allies | -11 -10 -10 -9 -9 -9 -8 -8 -8 -8 -7 -7 -6 -6 -------- Run | Scr Mat Min Mat Sto Gar Mat Gar Mat Gar Fac Gar Fac Ext Total Allies 38 | . . . . 1 . 2 . 1 6 3 3 7 15 Largest Group 9 | . . . . 1 . 2 2 1 2 2 2 2 9 Highest-Rated Group 228 | . . . . 99 . 32 32 10 30 45 48 82 228 Highest-Rated Ally 99 | . . . . 99 . 16 16 10 16 32 32 41 37 Total Orders 4 | . . . . . . . . 1 1 . . 2 . STAY 4 | . . . . . . . . 1 1 . . 2 . Ally Attacks 217 | . . . . . . . 41 . 30 9 12 27 98 Total Damage 4140 | . . . . . . . 573 . 580 71 226 491 2199 Kills 26 | . . . . . . . 6 . 6 . 3 2 9 Allies Corrupted . | . . . . . . . . . . . . . . Allies Melted . | . . . . . . . . . . . . . . Intel | -11 -10 -10 -9 -9 -9 -8 -8 -8 -8 -7 -7 -6 -6 ------- Run | Scr Mat Min Mat Sto Gar Mat Gar Mat Gar Fac Gar Fac Ext Robot Analysis Total 6 | . 2 . . . . 4 . . . . . . . Derelict Logs Recovered 1 | . . 1 . . . . . . . . . . . Drone Launches . | . . . . . . . . . . . . . . Drone Recoveries . | . . . . . . . . . . . . . . Exploration | -11 -10 -10 -9 -9 -9 -8 -8 -8 -8 -7 -7 -6 -6 ------------- Run | Scr Mat Min Mat Sto Gar Mat Gar Mat Gar Fac Gar Fac Ext Turns Passed 17309 | 107 1437 791 2502 1873 1137 1617 608 1100 1643 1256 984 1558 696 Spaces Moved 9382 | 45 687 405 982 710 523 657 289 517 798 699 897 1661 512 Core 2 | 2 . . . . . . . . . . . . . Treads 4713 | 43 687 405 982 196 523 202 289 517 798 71 . . . Legs 455 | . . . . . . 455 . . . . . . . Wheels 879 | . . . . 514 . . . . . 365 . . . Hover 3333 | . . . . . . . . . . 263 897 1661 512 Flight . | . . . . . . . . . . . . . . Fastest Speed 46 | 50 160 180 180 150 180 160 180 180 180 68 68 46 53 Average Speed 136 | 155 169 180 194 161 180 166 180 180 180 113 69 64 68 Slowest Speed 250 | 160 180 180 200 200 180 250 180 180 180 180 138 142 125 Overloaded Moves 124 | . . . . . . . . . . . . 124 . Propulsion Burnouts . | . . . . . . . . . . . . . . Robots Hopped 1 | . . . . . . . . . . . . . 1 Cave-ins Triggered . | . . . . . . . . . . . . . . Exploration Rate (%) 54 | 4 89 59 65 90 56 51 44 43 80 18 84 42 43 Regions Visited 13 Branch Regions 3 Pre-discovered Areas 4 | . 1 1 1 1 . . . . . . . . . Known Exits Taken 6 | . . . 1 1 . 1 . 1 . 1 . 1 . Unknown Exits Taken 3 | 1 1 1 . . . . . . . . . . . Scrap Searched 1 | . . 1 . . . . . . . . . . . Spaces Dug 47 | . 1 . 1 9 . 4 . . . 2 9 21 . Terrain Destroyed 227 | . 1 . 6 9 4 4 2 41 2 40 71 41 6 Melee 23 | . . . 1 1 . . . . . . 1 20 . Projectile 12 | . 1 . . . . . 1 . . 6 . 2 2 AOE 192 | . . . 5 8 4 4 1 41 2 34 70 19 4 Terrain Rammed . | . . . . . . . . . . . . . . Walls Destroyed . | . . . . . . . . . . . . . . Machines Disabled . | . . . . . . . . . . . . . . Actions | -11 -10 -10 -9 -9 -9 -8 -8 -8 -8 -7 -7 -6 -6 --------- Run | Scr Mat Min Mat Sto Gar Mat Gar Mat Gar Fac Gar Fac Ext Total 12457 | 64 805 438 1346 1189 629 992 348 635 940 1061 1192 2022 796 Wait 1185 | . 12 . 145 247 5 104 9 27 20 208 68 146 194 Move 9366 | 44 686 404 981 709 521 656 288 516 797 699 895 1660 510 Hop 1 | . . . . . . . . . . . . . 1 Pick Up 154 | 5 12 9 31 8 11 12 2 8 9 15 14 17 1 Fast Attach 96 | 7 . . 10 12 . 18 4 4 5 11 1 16 8 Attach 62 | . 3 2 8 4 4 4 1 1 2 9 6 13 5 Detach 10 | . . . 1 2 . . . 1 . 2 1 2 1 Swap 133 | . 7 . 9 18 9 14 3 13 21 8 8 16 7 Drop 210 | . 2 4 31 26 9 34 8 17 16 24 15 19 5 Fire 881 | 8 83 19 122 160 58 143 25 31 36 45 46 58 47 Melee 187 | . . . 1 1 . 6 . 16 22 40 21 63 17 Ram 1 | . . . . . . . . . . . . 1 . Kick 1 | . . . . . . 1 . . . . . . . Crush 7 | . . . 4 2 . . . 1 . . . . . Escape Stasis 160 | . . . . . 12 . 8 . 12 . 117 11 . Rewire . | . . . . . . . . . . . . . . Trap 3 | . . . 3 . . . . . . . . . . Miscellaneous . | . . . . . . . . . . . . . . Route ------- -11/Scrapyard -10/Materials (discovered 4 exits: *Mat x3 / [*Min]) -10/Mines -9/Materials (discovered 4 exits: *Mat / *Min x2 / *Sto) -9/Storage (discovered 3 exits: *Mat / [Rec] / Gar) -9/Garrison (discovered 3 exits: *Mat x3) -8/Materials (discovered 4 exits: *Fac x3 / Gar) -8/Garrison -8/Materials -8/Garrison (discovered 3 exits: *Fac x3) -7/Factory -7/Garrison (discovered 3 exits: *Fac x3) -6/Factory (discovered 6 exits: [*Fac x2] / *Low x2 / *Ext x2) -6/Extension History --------- Turn | Location | Event 36 | -11/Scrapyard | Discovered new exit (range 16) 108 | -11/Scrapyard | Entered Materials 315 | -10/Materials | Build established: Mutant 354 | -10/Materials | Discovered new exit (range 15) 445 | -10/Materials | Discovered new exit (range 15) 445 | -10/Materials | Central database locked down 671 | -10/Materials | Discovered new exit (range 13) 906 | -10/Materials | Discovered new exit (range 15) 1545 | -10/Materials | Entered Mines 1615 | -10/Mines | Found a hidden stash of uninstalled traps 1683 | -10/Mines | Discovered new exit (range 14) 1961 | -10/Mines | Joined a pair of Derelicts in attacking an 0b10 outpost 2336 | -10/Mines | Entered Materials 2336 | -9/Materials | Evolved 2 slots: Utility x2 2449 | -9/Materials | Discovered new exit (range 12) 2632 | -9/Materials | Build established: Hauler-Mutant 2952 | -9/Materials | Lost 3 parts (1n1u1w) 3349 | -9/Materials | Repaired Broken Lgt. Treads 3376 | -9/Materials | Repaired Lgt. Treads 3505 | -9/Materials | Discovered new exit (range 16) 3549 | -9/Materials | Identified exit to Mines 3549 | -9/Materials | Identified exit to Storage 3743 | -9/Materials | Discovered new exit (range 15) 4838 | -9/Materials | Entered Storage 5174 | -9/Storage | Discovered new exit (range 13) 5631 | -9/Storage | Found Prototype Launcher 5631 | -9/Storage | Identified Scatter Rocket Array 5662 | -9/Storage | Garrison activated, responded to threat 5663 | -9/Storage | Core integrity fell below 50% 6274 | -9/Storage | Discovered new exit (range 8) 6287 | -9/Storage | Met 01-MTF 6550 | -9/Storage | Destroyed 01-MTF 6567 | -9/Storage | Found 01-MTF's Shockpuncher 6646 | -9/Storage | Identified exit to Garrison 6711 | -9/Storage | Entered Garrison 6740 | -9/Garrison | Triggered checkpoint 6771 | -9/Garrison | Garrison Relay disabled 6852 | -9/Garrison | Triggered checkpoint 6964 | -9/Garrison | Discovered new exit (range 14) 7134 | -9/Garrison | Triggered checkpoint 7200 | -9/Garrison | Lost 3 parts (1p1n1w) 7247 | -9/Garrison | Discovered new exit (range 13) 7523 | -9/Garrison | Triggered checkpoint 7602 | -9/Garrison | Discovered new exit (range 12) 7632 | -9/Garrison | Installed Relay Interface Framework 7736 | -9/Garrison | Triggered checkpoint 7772 | -9/Garrison | Garrison Relay disabled 7848 | -9/Garrison | Entered Materials 7848 | -8/Materials | Evolved 2 slots: Propulsion x1, Utility x1 8319 | -8/Materials | Discovered new exit (range 4) 8423 | -8/Materials | Repaired Imp. Titanium Leg 8642 | -8/Materials | Discovered new exit (range 4) 9048 | -8/Materials | First assault squad dispatched 9075 | -8/Materials | Discovered new exit (range 16) 9081 | -8/Materials | Garrison activated, responded to threat 9371 | -8/Materials | Identified exit to Garrison 9465 | -8/Materials | Entered Garrison 9465 | -8/Garrison | Accompanied by 2 allies 9536 | -8/Garrison | Triggered checkpoint 9664 | -8/Garrison | Triggered checkpoint 9698 | -8/Garrison | Build established: Bothacker-Mutant 9708 | -8/Garrison | Triggered checkpoint 9876 | -8/Garrison | Discovered new exit (range 5) 9897 | -8/Garrison | Expanded RIF knowledge: Robot Detection 9950 | -8/Garrison | Triggered checkpoint 9990 | -8/Garrison | Garrison Relay disabled 10073 | -8/Garrison | Entered Materials 11104 | -8/Materials | Identified exit to Garrison 11173 | -8/Materials | Entered Garrison 11234 | -8/Garrison | Triggered checkpoint 11309 | -8/Garrison | Garrison Relay disabled 11422 | -8/Garrison | Triggered checkpoint 11425 | -8/Garrison | Triggered checkpoint 11428 | -8/Garrison | Triggered checkpoint 11498 | -8/Garrison | Triggered checkpoint 11675 | -8/Garrison | Discovered new exit (range 13) 11776 | -8/Garrison | Triggered checkpoint 11810 | -8/Garrison | Garrison Relay disabled 11906 | -8/Garrison | Triggered checkpoint 11908 | -8/Garrison | Core integrity fell below 50% 12068 | -8/Garrison | Discovered new exit (range 8) 12090 | -8/Garrison | Expanded RIF knowledge: Signal Jamming 12217 | -8/Garrison | Build established: Hauler-Mutant 12403 | -8/Garrison | Discovered new exit (range 9) 12452 | -8/Garrison | Triggered checkpoint 12734 | -8/Garrison | Triggered checkpoint 12755 | -8/Garrison | Garrison Relay disabled 12816 | -8/Garrison | Entered Factory 12816 | -7/Factory | Accompanied by 1 ally 12816 | -7/Factory | Evolved 2 slots: Propulsion x1, Utility x1 13565 | -7/Factory | Garrison activated, responded to threat 13695 | -7/Factory | Identified exit to Garrison 14008 | -7/Factory | Repaired Cmb. Airjet 14016 | -7/Factory | First assault squad dispatched 14029 | -7/Factory | Build established: Bothacker-Mutant 14053 | -7/Factory | Identified exit to Garrison 14072 | -7/Factory | Entered Garrison 14072 | -7/Garrison | Accompanied by 1 ally 14084 | -7/Garrison | Triggered checkpoint 14113 | -7/Garrison | Garrison Relay disabled 14175 | -7/Garrison | Triggered checkpoint 14253 | -7/Garrison | Triggered checkpoint 14310 | -7/Garrison | Found Launcher Loader 14331 | -7/Garrison | Discovered new exit (range 13) 14426 | -7/Garrison | Discovered new exit (range 12) 14526 | -7/Garrison | Discovered new exit (range 10) 14536 | -7/Garrison | Expanded RIF knowledge: Threat Obfuscation 14554 | -7/Garrison | Triggered checkpoint 14727 | -7/Garrison | Triggered checkpoint 14828 | -7/Garrison | Build established: Botlord-Mutant 14900 | -7/Garrison | Triggered checkpoint 15007 | -7/Garrison | Garrison Relay disabled 15056 | -7/Garrison | Entered Factory 15056 | -6/Factory | Evolved 2 slots: Power x1, Utility x1 15218 | -6/Factory | Fabricated Lgt. Fission Core? 15251 | -6/Factory | Repaired Cmb. Airjet 15309 | -6/Factory | Repaired Imp. Remote Datajack 15646 | -6/Factory | Identified exit to Lower Caves 15646 | -6/Factory | Identified exit to Extension 15658 | -6/Factory | Discovered new exit (range 15) 15743 | -6/Factory | Build established: Bothacker-Mutant 15905 | -6/Factory | Central database locked down 16530 | -6/Factory | Discovered new exit (range 8) 16614 | -6/Factory | Entered Extension 16668 | -6/Extension | Rescued a captive Derelict 16669 | -6/Extension | Rescued a captive Derelict 16677 | -6/Extension | Build established: Hauler-Mutant 16922 | -6/Extension | Rescued a captive Derelict 16923 | -6/Extension | Rescued a captive Derelict 16936 | -6/Extension | Rescued a captive Derelict 17220 | -6/Extension | Build established: Commander-Mutant 17268 | -6/Extension | Spotted B-75 Beast 17289 | -6/Extension | Disrupted transfer network 17310 | -6/Extension | Self-destructed Last Messages --------------- 17298_ Gravmag System destroyed. 17299_ Acquired 5 matter. 17299_ U-05 Engineer lays Concrete. 17302_ R-10 Processor collects Unknown Device. 17302_ U-05 Engineer lays Concrete. 17303_ OE-WJM(g) destroyed. 17304_ System corrupted: Matter fused (-6). 17304_ U-05 Engineer lays Concrete. 17305_ R-10 Processor collects Wheel. 17306_ R-10 Processor collects Structural Scanner. 17306_ U-05 Engineer lays Concrete. 17306_ B-75 Beast misfires. 17307_ Acquired 16 matter. 17308_ U-05 Engineer lays Concrete. 17309_ R-10 Processor collects Com. Wheel. 17310_ Cld. Aerolev Unit destroyed. 17310_ Knocked back. 17310_ Cld. Aerolev Unit destroyed. 17310_ U-05 Engineer lays Concrete. 17310_ R-10 Processor collects Welding Torch. Map ----- +----------------------------------------------------+ | #?# ===%[ # #??????# #???? #???? | | #?# % = / #??????# #???? #???? | | #?# = #################??????# #?????#???? | | #?# = #??????????????????????# #?????????? | | #?###########??????????????????????# #?????????? | | #??????????????????????????????????# #?????????? | | ###??????????????????????????????????# #?????????? | | ????????????????????????????????????## ###???????? | | ????????????????????????????????????#T #???????? | | ????????????????????????????????????## ##???????? | | ?????????????????????????????????????# #????????? | | ?????????????????????????????????????####????????? | | ?????????????????????????????????????????????????? | | ?????????????????????????????????????????????????? | | ?????????????????????????????????????????????????? | | ?????????????????????????????????????????????????? | | ?????????????????????????????????????????????????? | | ?????????????????????????????????????????????????? | | ???????????#####?????????????????????????????????? | | ???????????#=!=######????????????????????????????? | | ???????????#%*%=% #????????????????????????????? | | ???????????#=%=####%####?????????????????????????? | | #############+#####+[;/##################????????? | | %/ [%%% ??????? | | !* !=**! BB % % ??????? | | %% @%BB u *R ??????? | | ! ! R ??????? | | u Au k A ???????? | | #################################;;######"???????? | | ???????????????????????????????????#?????????????? | | ?????????????????????????????????????????????????? | | ?????????????????????????????????????????????????? | | ?????????????????????????????????????????????????? | | ?????????????????????????????????????????????????? | | ?????????????????????????????????????????????????? | | ?????????????????????????????????????????????????? | | | | | | | | | | | | | | | | | | | | | | | | | | | | | +----------------------------------------------------+ Best States ------------- Heat Dissipation 56 Energy Generation 34 Energy Capacity 880 Matter Stores 300 Matter Capacity 300 Sight Range 16 Terrain Scan Density 10 Armor Coverage 300 Core Shielding 20 Weapon Shielding 66 Evasion (%) 55 Targeting Accuracy 8 Melee Accuracy 5 Recoil Reduction 4 Offensive Hacking 20 Relay Coupler Types 56 Relay Coupler Value 3 Item Schematics ----------------- Hrd. Medium Armor Plating | -9/Storage | Hacked Hacking Suite | -8/Materials | Hacked Cmb. Airjet | -8/Materials | Scanalyzed Adv. Sensor Array | -8/Materials | Scanalyzed Adv. Signal Interpreter | -8/Materials | Scanalyzed Adv. EMP Blaster | -8/Materials | Scanalyzed Lrg. Storage Unit | -6/Factory | Hacked Imp. Hacking Suite | -6/Factory | Hacked Robot Schematics ------------------ None Fabricated ------------ Lgt. Fission Core | x2 | -6/Factory | Preloaded Alien Tech Used ----------------- None Achievements -------------- None Challenges ------------ None Game ------ Seed HardlightFluxThrower Manual? 0 Play Time 02:12:12 Cumulative 540.3 hours Start 2021.02.12 @ 22:13:52 End 2021.02.13 @ 00:27:52 Sessions 1 Manual Loads 0 Difficulty Rogue Special Mode None Game No. 342 Rogue 342 Adventurer 0 Explorer 0 Win Type - Total 6 Types 4/0/1/0/1/0/0/0/0 Lore% 88 Gallery% 89 Achievement% 70 Wizard Run 0 Options --------- ASCII 0 Keyboard 0 Movement Mouse Keybinds 1 Fullscreen 2 Font 24/Smallcaps Map View 68x50 Tactical HUD 1 Map Filters NONE Filters NONE Steam 1 RUN: 11c49bab-d80b-4425-b96e-2d76ba512625